bitfinex-derivatives/quotes_BTCF0:USTF0_20250806
["timestamp","ask_amount","ask_price","bid_price","bid_amount"]
[1754438960871,1.15600813,114100.0,114090.0,0.238358]
[1754438961070,1.15300813,114100.0,114090.0,0.237358]
[1754438961272,1.15500813,114100.0,114090.0,0.238358]
[1754438972178,1.51580813,114100.0,114090.0,0.238358]
[1754438972580,1.51580813,114100.0,114090.0,0.188048]
[1754438973582,1.51480813,114100.0,114090.0,0.188048]
[1754438973776,1.51680813,114100.0,114090.0,0.187048]
[1754438973982,1.51780813,114100.0,114090.0,0.188048]
[1754438975980,0.91052813,114100.0,114090.0,0.165528]
[1754438976183,1.51796813,114100.0,114090.0,0.234928]
[1754438977882,1.51496813,114100.0,114090.0,0.233928]
[1754438978083,1.51696813,114100.0,114090.0,0.234928]
[1754438979889,1.51496813,114100.0,114090.0,0.234928]
[1754438980084,1.51596813,114100.0,114090.0,0.234928]
[1754438983996,0.8998919,114100.0,114090.0,0.4102353]
[1754438984295,1.5065319,114100.0,114090.0,0.4102353]
[1754438984790,1.5065319,114100.0,114090.0,0.41920025]
[1754438985186,0.7246,114100.0,114090.0,0.41920025]
[1754438985495,1.33116,114100.0,114090.0,0.41920025]
[1754438985888,1.5064519,114100.0,114090.0,0.41920025]
[1754438987494,1.5064519,114100.0,114090.0,0.68210025]
[1754438987495,0.7246,114100.0,114090.0,0.68210025]
[1754438987694,1.33088,114100.0,114090.0,0.68210025]
[1754438988396,1.5061719,114100.0,114090.0,0.68210025]
[1754438988593,0.8998919,114100.0,114090.0,0.68210025]
[1754438988798,1.5061719,114100.0,114090.0,0.68210025]
[1754438995195,1.5061719,114100.0,114090.0,0.6731353]
[1754438995399,1.5061719,114100.0,114090.0,0.5783653]
[1754438995802,1.5061719,114100.0,114090.0,0.6040653]
[1754438996101,1.5061719,114100.0,114090.0,0.6734953]
[1754438999301,1.5061719,114100.0,114090.0,0.5783653]
[1754438999606,1.5061719,114100.0,114090.0,0.6254153]
[1754438999791,1.5061719,114100.0,114090.0,0.6734953]
[1754439000403,1.5061719,114100.0,114090.0,0.450108]
[1754439001404,1.5061719,114100.0,114090.0,0.403058]
[1754439001706,1.5061719,114100.0,114090.0,0.5783653]
[1754439002104,1.5061719,114100.0,114090.0,0.403058]
[1754439002805,1.5061719,114100.0,114090.0,0.482868]
[1754439003005,1.5061719,114100.0,114090.0,0.498188]
[1754439003308,1.5061719,114100.0,114090.0,0.6734953]
[1754439003809,1.5056919,114100.0,114090.0,0.6734953]
[1754439004404,0.7246,114100.0,114090.0,0.6734953]
[1754439004709,2.2246,114100.0,114090.0,0.9734953]
[1754439005006,0.96968,114100.0,114090.0,0.9734953]
[1754439005703,0.3638,114100.0,114090.0,0.9734953]
[1754439006009,2.6452919,114100.0,114090.0,0.9734953]
[1754439006710,2.0390919,114100.0,114090.0,1.1487913]
[1754439008612,2.0390919,114100.0,114090.0,0.9734953]
[1754439009818,2.0390919,114100.0,114090.0,1.4169953]
[1754439010018,2.0390919,114100.0,114090.0,1.1169953]
[1754439010318,1.6782919,114100.0,114090.0,1.1169953]
[1754439011116,2.0390919,114100.0,114090.0,1.1169953]
[1754439012114,2.0370919,114100.0,114090.0,1.1209953]
[1754439012321,2.0380919,114100.0,114090.0,1.1299953]
[1754439013314,0.5380919,114100.0,114090.0,1.1299953]
[1754439013821,0.3628,114100.0,114090.0,1.1299953]
[1754439014223,1.502,114100.0,114090.0,1.6052913]
[1754439014520,0.5360706,114120.0,114110.0,0.2946766]
[1754439014721,1.1418706,114120.0,114110.0,0.2946766]
[1754439014917,0.9666,114120.0,114110.0,0.2946766]
[1754439015225,0.9666,114120.0,114110.0,0.4098146]
[1754439015826,0.9676,114120.0,114110.0,0.4138146]
[1754439016913,0.9676,114120.0,114110.0,0.4188146]
[1754439017924,0.3618,114120.0,114110.0,0.4188146]
[1754439018124,0.96728,114120.0,114110.0,0.4188146]
[1754439018327,0.96728,114120.0,114110.0,0.4168146]
[1754439018527,0.96828,114120.0,114110.0,0.4228146]
[1754439018826,0.96828,114120.0,114110.0,1.1292146]
[1754439019025,1.1435412,114120.0,114110.0,1.1292146]
[1754439020227,0.5380612,114120.0,114110.0,1.1292146]
[1754439021629,0.3628,114120.0,114110.0,1.1292146]
[1754439021930,0.5380612,114120.0,114110.0,1.1292146]
[1754439026628,0.5380612,114120.0,114110.0,1.1232146]
[1754439026929,0.5370612,114120.0,114110.0,1.1212146]
[1754439027132,0.5380612,114120.0,114110.0,1.1282146]
[1754439027426,0.5380612,114120.0,114110.0,1.0314646]
[1754439027828,0.5380612,114120.0,114110.0,1.0314644]
[1754439029626,0.5380612,114120.0,114110.0,1.0795944]
[1754439030432,0.5380612,114120.0,114110.0,0.6526444]
[1754439030731,0.5380612,114120.0,114110.0,0.6834244]
[1754439033434,0.5380612,114120.0,114110.0,0.412688]
[1754439034425,0.5380612,114120.0,114110.0,0.454668]
[1754439034627,0.5380612,114120.0,114110.0,0.470518]
[1754439035133,0.5380612,114120.0,114110.0,0.487068]
[1754439035533,0.5370612,114120.0,114110.0,0.503148]
[1754439035739,0.5370612,114120.0,114110.0,0.505148]
[1754439036228,0.8978612,114120.0,114110.0,0.505148]
[1754439036734,0.8968612,114120.0,114110.0,0.498148]
[1754439036935,0.8978612,114120.0,114110.0,0.502148]
[1754439038336,0.8978612,114120.0,114110.0,0.454018]
[1754439040346,0.8978612,114120.0,114110.0,0.432938]
[1754439040938,0.8978612,114120.0,114110.0,0.454018]
[1754439041140,0.8978612,114120.0,114110.0,0.502148]
[1754439044837,0.8978612,114120.0,114110.0,0.481068]
[1754439045042,0.8978612,114120.0,114110.0,0.406688]
[1754439046747,0.8978612,114120.0,114110.0,0.404688]
[1754439046945,0.8978612,114120.0,114110.0,0.415388]
[1754439047138,0.8978612,114120.0,114110.0,0.501148]
[1754439048841,0.8978612,114120.0,114110.0,0.503148]
[1754439049443,0.8978612,114120.0,114110.0,0.383038]
[1754439049647,0.8988612,114120.0,114110.0,0.120138]
[1754439050040,0.8978612,114120.0,114110.0,0.115138]
[1754439050241,0.8988612,114120.0,114110.0,0.116138]
[1754439050437,0.8978612,114120.0,114110.0,0.116138]
[1754439050641,0.8968612,114120.0,114110.0,0.115138]
[1754439050843,0.8978612,114120.0,114110.0,0.116138]
[1754439051545,1.3731252,114120.0,114110.0,0.0792415]
[1754439051745,1.3731252,114120.0,114110.0,0.0413277]
[1754439052044,1.3781252,114120.0,114110.0,1e-07]
[1754439052248,0.1752918,114100.0,114090.0,0.02494]
[1754439052451,1.5012118,114100.0,114090.0,0.02494]
[1754439052649,0.1753072,114090.0,114080.0,0.38284]
[1754439052842,0.5361072,114090.0,114080.0,0.38284]
[1754439054445,0.5371072,114090.0,114080.0,0.38784]
[1754439054953,0.5371072,114090.0,114080.0,0.502978]
[1754439055447,0.5371072,114090.0,114080.0,0.504978]
[1754439057147,0.5371072,114090.0,114080.0,0.242078]
[1754439062962,0.5371072,114090.0,114080.0,0.504978]
[1754439068673,0.5371072,114090.0,114080.0,0.6803006]
[1754439071467,0.5371072,114090.0,114080.0,0.6803007]
[1754439072775,0.96516,114090.0,114080.0,0.6803007]
[1754439073265,1.1404673,114090.0,114080.0,0.6803007]
[1754439074765,1.1404673,114090.0,114080.0,1.1238007]
[1754439074973,0.5371073,114090.0,114080.0,1.1238007]
[1754439078377,0.5371073,114090.0,114080.0,0.948478]
[1754439078577,0.5371073,114090.0,114080.0,1.1238007]
[1754439080773,0.5371073,114090.0,114080.0,0.6803007]
[1754439092279,0.5371073,114090.0,114080.0,1.13685944]
[1754439096281,0.3618,114090.0,114080.0,1.13685944]
[1754439096482,0.96512,114090.0,114080.0,1.13685944]
[1754439098285,0.5371073,114090.0,114080.0,1.13685944]
[1754439098490,0.5371073,114090.0,114080.0,1.1238007]
[1754439098679,0.5371073,114090.0,114080.0,1.58035944]
[1754439100489,0.5371073,114090.0,114080.0,1.1238007]
[1754439100690,0.5371073,114090.0,114080.0,1.58035944]
[1754439101490,0.5371073,114090.0,114080.0,1.1238007]
[1754439106190,1.1404273,114090.0,114080.0,1.1238007]
[1754439106394,1.59698604,114090.0,114080.0,1.1238007]
[1754439106796,1.59698604,114090.0,114080.0,0.900818]
[1754439107097,1.59698604,114090.0,114080.0,1.0761407]
[1754439107893,1.59698604,114090.0,114080.0,1.0288007]
[1754439109100,1.59698604,114090.0,114080.0,1.0780707]
[1754439110298,1.59698604,114090.0,114080.0,0.6822207]
[1754439111698,1.95778604,114090.0,114080.0,0.6822207]
[1754439112694,1.5012273,114090.0,114080.0,0.6822207]
[1754439116491,1.5012273,114090.0,114080.0,0.506898]
[1754439117700,1.5012273,114090.0,114080.0,0.6822207]
[1754439117892,1.5012273,114090.0,114080.0,0.506898]
[1754439118496,1.95778604,114090.0,114080.0,0.506898]
[1754439118702,1.5012273,114090.0,114080.0,0.506898]
[1754439119005,1.95778604,114090.0,114080.0,0.506898]
[1754439119193,1.95778604,114090.0,114080.0,0.457628]
[1754439125202,1.5012273,114090.0,114080.0,0.504258]
[1754439125400,1.95778604,114090.0,114080.0,0.504258]
[1754439127497,1.95778604,114090.0,114080.0,0.409978]
[1754439129704,1.95878604,114090.0,114080.0,0.405978]
[1754439130009,1.95878604,114090.0,114080.0,0.403978]
[1754439130303,1.95978604,114090.0,114080.0,0.403978]
[1754439130801,1.95978604,114090.0,114080.0,0.379038]
[1754439131006,1.95978604,114090.0,114080.0,0.401768]
[1754439138506,1.95978604,114090.0,114080.0,0.379038]
[1754439138712,1.95978604,114090.0,114080.0,0.401768]
[1754439139507,1.95978604,114090.0,114080.0,0.116138]
[1754439139913,1.95978604,114090.0,114080.0,0.138868]
[1754439141206,1.95978604,114090.0,114080.0,0.116138]
[1754439141809,1.95978604,114090.0,114080.0,0.141028]
[1754439142710,1.95878604,114090.0,114080.0,0.141028]
[1754439142914,1.96078604,114090.0,114080.0,0.141028]
[1754439143208,1.95878604,114090.0,114080.0,0.116138]
[1754439143415,1.96278604,114090.0,114080.0,0.116138]
[1754439143805,1.96278604,114090.0,114080.0,0.141028]
[1754439144915,1.95878604,114090.0,114080.0,0.140028]
[1754439145111,1.96078604,114090.0,114080.0,0.116138]
[1754439145617,2.41734478,114090.0,114080.0,0.116138]
[1754439146010,1.96078604,114090.0,114080.0,0.116138]
[1754439146418,2.89264878,114090.0,114080.0,0.116138]
[1754439148019,2.59264878,114090.0,114080.0,0.116138]
[1754439148316,2.89264878,114090.0,114080.0,0.116138]
[1754439149519,2.89064878,114090.0,114080.0,0.115138]
[1754439149824,2.89564878,114090.0,114080.0,0.116138]
[1754439151423,0.1753533,114060.0,114050.0,0.09523]
[1754439151717,1.95923204,114060.0,114050.0,0.38302]
[1754439152424,1.96023204,114060.0,114050.0,0.38702]
[1754439152723,1.96123204,114060.0,114050.0,0.39202]
[1754439153624,1.96123204,114060.0,114050.0,0.46292571]
[1754439154320,1.96123204,114060.0,114050.0,0.57806371]
[1754439155226,1.96123204,114060.0,114050.0,0.460878]
[1754439155819,1.51353753,114060.0,114050.0,0.507158]
[1754439156020,1.97009627,114060.0,114050.0,0.507158]
[1754439156222,1.51353753,114060.0,114050.0,0.507158]
[1754439156420,1.97009627,114060.0,114050.0,0.507158]
[1754439156920,1.5046733,114060.0,114050.0,0.507158]
[1754439157124,1.96123204,114060.0,114050.0,0.507158]
[1754439157324,1.96023204,114060.0,114050.0,0.504158]
[1754439158116,1.96902858,114060.0,114050.0,0.504158]
[1754439158322,1.96123204,114060.0,114050.0,0.506158]
[1754439160732,1.96919858,114060.0,114050.0,0.501158]
[1754439160933,1.97019858,114060.0,114050.0,0.502158]
[1754439161338,1.96919858,114060.0,114050.0,0.501158]
[1754439161520,1.97019858,114060.0,114050.0,0.505158]
[1754439161928,1.97019858,114060.0,114050.0,0.458878]
[1754439162326,1.97019858,114060.0,114050.0,0.505158]
[1754439165630,1.96919858,114060.0,114050.0,0.502158]
[1754439165830,1.96919858,114060.0,114050.0,0.503158]
[1754439166032,1.96919858,114060.0,114050.0,0.407928]
[1754439166332,1.96919858,114060.0,114050.0,0.405928]
[1754439169444,0.90691984,114060.0,114050.0,0.501158]
[1754439169634,1.96167204,114060.0,114050.0,0.501158]
[1754439169930,0.8979533,114060.0,114050.0,1.13308534]
[1754439170127,1.5051133,114060.0,114050.0,0.6765266]
[1754439171038,0.8979533,114060.0,114050.0,0.6765266]
[1754439171230,1.5051533,114060.0,114050.0,0.6765266]
[1754439173133,1.5061533,114060.0,114050.0,0.6815266]
[1754439173334,1.5071533,114060.0,114050.0,0.6875266]
[1754439173839,1.96371204,114060.0,114050.0,0.512158]
[1754439174138,1.96407204,114060.0,114050.0,0.512158]
[1754439175941,1.96407204,114060.0,114050.0,0.416928]
[1754439176536,1.96407204,114060.0,114050.0,0.426368]
[1754439176737,1.96407204,114060.0,114050.0,0.442958]
[1754439177133,1.96407204,114060.0,114050.0,0.392038]
[1754439177334,1.9828653,114060.0,114050.0,0.129138]
[1754439177847,2.43742404,114060.0,114050.0,0.121138]
[1754439178139,2.13942404,114060.0,114050.0,0.122138]
[1754439178339,2.43942404,114060.0,114050.0,0.122138]
[1754439179047,0.1753841,114040.0,114030.0,0.02345]
[1754439179346,1.35354284,114040.0,114030.0,0.09795]
[1754439179547,1.35354284,114040.0,114030.0,0.04948]
[1754439180047,1.81010158,114040.0,114030.0,0.02345]
[1754439180441,1.35354284,114040.0,114030.0,0.02345]
[1754439180639,0.8969841,114040.0,114030.0,0.12074]
[1754439180843,1.35454284,114040.0,114030.0,0.12274]
[1754439181741,1.35654284,114040.0,114030.0,0.12274]
[1754439182041,0.8999841,114040.0,114030.0,0.12274]
[1754439182244,1.5364641,114040.0,114030.0,0.12274]
[1754439182444,1.5364641,114040.0,114030.0,0.237878]
[1754439182642,1.99302284,114040.0,114030.0,0.237878]
[1754439183041,1.5364641,114040.0,114030.0,0.237878]
[1754439183244,1.99402284,114040.0,114030.0,0.237878]
[1754439183643,1.5374641,114040.0,114030.0,0.237878]
[1754439183843,1.99302284,114040.0,114030.0,0.235878]
[1754439184044,1.99602284,114040.0,114030.0,0.236878]
[1754439185053,1.5384641,114040.0,114030.0,0.236878]
[1754439185247,1.5394641,114040.0,114030.0,0.4122775]
[1754439185559,1.36396,114040.0,114030.0,0.86883624]
[1754439185758,0.3658,114040.0,114030.0,1.34422024]
[1754439185946,1.0036,114040.0,114030.0,1.34422024]
[1754439186153,1.1789841,114040.0,114030.0,1.34422024]
[1754439186662,0.5411841,114040.0,114030.0,0.7122775]
[1754439186864,1.1789841,114040.0,114030.0,1.16883624]
[1754439187158,0.8181841,114040.0,114030.0,1.34422024]
[1754439187663,0.8181841,114040.0,114030.0,1.16883624]
[1754439189161,1.1789841,114040.0,114030.0,1.16883624]
[1754439189660,0.8182241,114040.0,114030.0,1.34422024]
[1754439190266,0.1803841,114040.0,114030.0,1.54888504]
[1754439191864,0.1803841,114040.0,114030.0,1.0923263]
[1754439192162,0.1803841,114040.0,114030.0,1.54888504]
[1754439192567,0.5411841,114040.0,114030.0,1.54888504]
[1754439192766,0.5411841,114040.0,114030.0,1.34422024]
[1754439193766,0.005,114040.0,114030.0,1.60712024]
[1754439193959,1.1740159,114050.0,114040.0,0.224204]
[1754439194160,0.5361686,114050.0,114040.0,0.75268274]
[1754439195272,0.5391686,114050.0,114040.0,0.86882074]
[1754439195571,0.5401686,114050.0,114040.0,0.86982074]
[1754439195770,0.1793686,114050.0,114040.0,0.86982074]
[1754439196154,0.1793686,114050.0,114040.0,0.87282074]
[1754439196761,0.1783686,114050.0,114040.0,0.87982074]
[1754439199167,0.1783686,114050.0,114040.0,1.58622074]
[1754439199359,0.1783686,114050.0,114040.0,1.56343074]
[1754439199861,0.1783686,114050.0,114040.0,1.53997074]
[1754439200062,0.1783686,114050.0,114040.0,1.55399074]
[1754439202169,0.1783686,114050.0,114040.0,1.097432]
[1754439202369,0.1783686,114050.0,114040.0,1.55399074]
[1754439202971,0.1783686,114050.0,114040.0,1.55217074]
[1754439203867,0.003,114050.0,114040.0,2.40139748]
[1754439204068,0.3258,114060.0,114050.0,0.2642586]
[1754439204267,0.3608,114070.0,114060.0,0.2968733]
[1754439204471,1.3351896,114080.0,114070.0,0.2248079]
[1754439204669,0.6533956,114080.0,114070.0,0.2968579]
[1754439204870,1.2914756,114080.0,114070.0,0.2968579]
[1754439205070,0.5361338,114080.0,114070.0,0.75341664]
[1754439205266,0.5697438,114080.0,114070.0,0.86855464]
[1754439205966,0.39441,114080.0,114070.0,0.86955464]
[1754439206174,0.39541,114080.0,114070.0,0.86955464]
[1754439206367,0.5707325,114080.0,114070.0,0.4129959]
[1754439206567,0.5707325,114080.0,114070.0,0.86955464]
[1754439206769,0.5697325,114080.0,114070.0,0.87255464]
[1754439206966,0.5717325,114080.0,114070.0,0.87355464]
[1754439207164,0.03561,114080.0,114070.0,0.87355464]
[1754439207672,0.2119325,114080.0,114070.0,0.88255464]
[1754439209167,0.003,114080.0,114070.0,0.88255464]
[1754439209577,0.003,114080.0,114070.0,0.89129346]
[1754439209877,0.1783225,114080.0,114070.0,0.89129346]
[1754439210070,0.1783225,114080.0,114070.0,0.88255464]
[1754439210566,0.1783225,114080.0,114070.0,1.0637559]
[1754439210771,0.1783225,114080.0,114070.0,1.52031464]
[1754439212976,0.5391225,114080.0,114070.0,1.52896351]
[1754439213180,0.5727325,114080.0,114070.0,1.52896351]
[1754439214674,0.6125525,114080.0,114070.0,1.52896351]
[1754439216581,0.5727325,114080.0,114070.0,1.52896351]
[1754439217174,0.5727325,114080.0,114070.0,1.07240477]
[1754439217375,0.5727325,114080.0,114070.0,1.52896351]
[1754439218785,0.5727325,114080.0,114070.0,1.07240477]
[1754439218975,0.5727325,114080.0,114070.0,1.52896351]
[1754439219782,0.6125525,114080.0,114070.0,2.23536351]
[1754439220677,0.6125525,114080.0,114070.0,2.23228351]
[1754439220878,0.6125525,114080.0,114070.0,1.59760351]
[1754439221078,0.6125525,114080.0,114070.0,2.23228351]
[1754439226582,0.6125525,114080.0,114070.0,1.14104477]
[1754439226778,1.09357124,114080.0,114070.0,1.59890687]
[1754439226982,1.09357124,114080.0,114070.0,1.77424477]
[1754439227183,1.09357124,114080.0,114070.0,1.59890687]
[1754439227984,0.6370125,114080.0,114070.0,1.77424477]
[1754439228787,0.6370125,114080.0,114070.0,1.14104477]
[1754439231787,0.6370125,114080.0,114070.0,0.69754477]
[1754439237389,1.09301124,114080.0,114070.0,0.512428]
[1754439237791,1.09301124,114080.0,114070.0,0.402058]
[1754439237995,1.09301124,114080.0,114070.0,0.438818]
[1754439238291,1.09301124,114080.0,114070.0,0.485818]
[1754439238592,1.09301124,114080.0,114070.0,0.507948]
[1754439239592,1.09201124,114080.0,114070.0,0.504948]
[1754439244989,1.09201124,114080.0,114070.0,0.6802859]
[1754439245195,0.5381225,114080.0,114070.0,1.13684464]
[1754439245693,0.3628,114080.0,114070.0,1.76516464]
[1754439246282,0.5381225,114080.0,114070.0,1.76516464]
[1754439246992,0.5720725,114080.0,114070.0,1.76516464]
[1754439249698,0.6086925,114080.0,114070.0,1.76516464]
[1754439253001,0.5381225,114080.0,114070.0,1.76516464]
[1754439254198,2.0381225,114080.0,114070.0,1.76516464]
[1754439255097,2.0381225,114080.0,114070.0,1.13684464]
[1754439255298,2.0720725,114080.0,114070.0,1.3064859]
[1754439255513,2.0959725,114080.0,114070.0,1.3064859]
[1754439256310,2.0720725,114080.0,114070.0,1.3064859]
[1754439256805,2.0720725,114080.0,114070.0,1.76304464]
[1754439257807,2.0381225,114080.0,114070.0,1.76304464]
[1754439258915,2.0720725,114080.0,114070.0,1.76304464]
[1754439259607,1.7112725,114080.0,114070.0,1.76304464]
[1754439259807,2.0720725,114080.0,114070.0,1.76304464]
[1754439261109,2.0720725,114080.0,114070.0,2.20654464]
[1754439261411,1.89675,114080.0,114070.0,2.20654464]
[1754439261910,1.7112725,114080.0,114070.0,2.20654464]
[1754439263106,2.0720725,114080.0,114070.0,2.20654464]
[1754439263320,1.7112725,114080.0,114070.0,2.20654464]
[1754439263612,2.0720725,114080.0,114070.0,2.20654464]
[1754439264415,1.7112725,114080.0,114070.0,2.20654464]
[1754439264619,2.0720725,114080.0,114070.0,2.20654464]
[1754439265517,1.89675,114080.0,114070.0,2.20654464]
[1754439265924,1.8628,114080.0,114070.0,2.20654464]
[1754439266422,1.89479,114080.0,114070.0,2.20654464]
[1754439267025,2.0701125,114080.0,114070.0,2.20654464]
[1754439269124,1.7093125,114080.0,114070.0,2.20654464]
[1754439269325,2.0701125,114080.0,114070.0,2.20654464]
[1754439269627,1.89479,114080.0,114070.0,2.20654464]
[1754439270014,1.502,114080.0,114070.0,2.20654464]
[1754439270221,0.002,114080.0,114070.0,2.77200944]
[1754439271731,0.002,114080.0,114070.0,3.22856818]
[1754439271921,1.5,114090.0,114080.0,0.2929124]
[1754439272124,1.5,114090.0,114080.0,1.5379483]
[1754439272730,1.5,114090.0,114080.0,1.08138956]
[1754439273734,1.501,114090.0,114080.0,1.08338956]
[1754439273929,1.53299,114090.0,114080.0,1.08338956]
[1754439275033,1.53399,114090.0,114080.0,1.08538956]
[1754439275332,1.53399,114090.0,114080.0,1.20052756]
[1754439276132,1.53399,114090.0,114080.0,1.6570863]
[1754439276326,1.53399,114090.0,114080.0,1.8617511]
[1754439277134,1.53399,114090.0,114080.0,1.40519236]
[1754439278729,1.53399,114090.0,114080.0,1.20052756]
[1754439280833,0.002,114090.0,114080.0,1.56132756]
[1754439281038,0.002,114090.0,114080.0,2.2225511]
[1754439281731,1e-07,114090.0,114080.0,2.2225511]
[1754439284835,1e-07,114090.0,114080.0,2.6660511]
[1754439285835,1e-07,114090.0,114080.0,2.4613863]
[1754439289939,1e-07,114090.0,114080.0,2.6366903]
[1754439290828,1.7072664,114110.0,114100.0,0.2702318]
[1754439291139,1.7316664,114110.0,114100.0,1.36856054]
[1754439291335,1.55639,114110.0,114100.0,1.36856054]
[1754439292334,1.7336664,114110.0,114100.0,1.36956054]
[1754439292839,1.7346664,114110.0,114100.0,1.36956054]
[1754439293136,2.0954664,114110.0,114100.0,1.36956054]
[1754439293533,2.0954664,114110.0,114100.0,1.29898054]
[1754439293930,2.0954664,114110.0,114100.0,0.8875418]
[1754439294134,2.0954664,114110.0,114100.0,1.34410054]
[1754439295144,2.0954664,114110.0,114100.0,1.45923854]
[1754439296646,2.0954664,114110.0,114100.0,2.16563844]
[1754439297445,2.0954664,114110.0,114100.0,1.7075597]
[1754439297646,2.0954664,114110.0,114100.0,2.16411844]
[1754439300744,2.0954664,114110.0,114100.0,2.22104437]
[1754439301247,2.7127464,114110.0,114100.0,1.7075597]
[1754439301445,2.60895107,114110.0,114100.0,0.9978297]
[1754439301841,2.60895107,114110.0,114100.0,0.3140379]
[1754439301842,3.08423107,114110.0,114100.0,0.3140379]
[1754439304148,3.59771574,114110.0,114100.0,0.3140379]
[1754439304445,3.08423107,114110.0,114100.0,0.3140379]
[1754439304640,3.02747408,114110.0,114100.0,0.3140379]
[1754439305043,3.02747408,114110.0,114100.0,0.051138]
[1754439310856,2.5707464,114110.0,114100.0,0.051138]
[1754439311153,3.02747408,114110.0,114100.0,0.051138]
[1754439311956,3.09809858,114110.0,114100.0,0.051138]
[1754439312339,3.09609858,114110.0,114100.0,0.052138]
[1754439312650,3.09809858,114110.0,114100.0,0.052138]
[1754439315451,3.09709858,114110.0,114100.0,0.052138]
[1754439317755,3.09709858,114110.0,114100.0,0.076658]
[1754439322152,3.14111408,114110.0,114100.0,0.075508]
[1754439322359,3.14111408,114110.0,114100.0,0.167948]
[1754439322758,3.14111408,114110.0,114100.0,0.3432398]
[1754439323157,2.52679408,114110.0,114100.0,0.3432398]
[1754439323359,3.14087408,114110.0,114100.0,0.3432398]
[1754439323660,2.6841464,114110.0,114100.0,0.3432398]
[1754439325159,2.0700664,114110.0,114100.0,0.3432398]
[1754439325366,2.6518364,114110.0,114100.0,0.3432398]
[1754439326466,2.6518364,114110.0,114100.0,0.6061397]
[1754439327359,2.47656,114110.0,114100.0,1.06286738]
[1754439327760,1.8628,114110.0,114100.0,1.06286738]
[1754439328066,2.6525165,114110.0,114100.0,1.06286738]
[1754439328460,2.47724,114110.0,114100.0,1.06286738]
[1754439328767,2.6525165,114110.0,114100.0,1.06286738]
[1754439330767,2.6525165,114110.0,114100.0,0.6061397]
[1754439330967,2.6525165,114110.0,114100.0,1.06286738]
[1754439331367,2.6525165,114110.0,114100.0,0.6061397]
[1754439331568,2.6525165,114110.0,114100.0,1.06286738]
[1754439333265,3.10924418,114110.0,114100.0,0.4308479]
[1754439333971,3.10924418,114110.0,114100.0,0.6061396]
[1754439334265,3.10924418,114110.0,114100.0,0.3384079]
[1754439334573,3.10924418,114110.0,114100.0,0.3150379]
[1754439335070,3.10840418,114110.0,114100.0,0.052138]
[1754439337765,3.58368418,114110.0,114100.0,0.052138]
[1754439339070,3.28368418,114110.0,114100.0,0.052138]
[1754439343069,3.35324941,114110.0,114100.0,0.052138]
[1754439344573,3.35424941,114110.0,114100.0,0.052138]
[1754439348572,3.17896941,114110.0,114100.0,0.052138]
[1754439348779,3.35424941,114110.0,114100.0,0.052138]
[1754439349678,3.17896941,114110.0,114100.0,0.052138]
[1754439350277,3.17796941,114110.0,114100.0,0.052138]
[1754439351678,3.17696941,114110.0,114100.0,0.052138]
[1754439352277,3.17696941,114110.0,114100.0,0.076718]
[1754439352479,3.17696941,114110.0,114100.0,0.052138]
[1754439353180,3.53776941,114110.0,114100.0,0.052138]
[1754439359996,3.53776941,114110.0,114100.0,0.076718]
[1754439364595,3.53776941,114110.0,114100.0,0.052138]
[1754439365500,3.53776941,114110.0,114100.0,0.076718]
[1754439366202,3.53876941,114110.0,114100.0,0.076718]
[1754439368601,3.53776941,114110.0,114100.0,0.076718]
[1754439372292,3.53648941,114110.0,114100.0,0.157948]
[1754439372496,3.53648941,114110.0,114100.0,0.172358]
[1754439376104,2.81488941,114110.0,114100.0,0.172358]
[1754439376402,3.53648941,114110.0,114100.0,0.172358]
[1754439376796,3.59348371,114110.0,114100.0,0.172358]
[1754439379609,3.07976173,114110.0,114100.0,0.172358]
[1754439379807,3.59348371,114110.0,114100.0,0.172358]
[1754439380312,3.59348371,114110.0,114100.0,0.123098]
[1754439380502,3.59348371,114110.0,114100.0,0.172358]
[1754439381406,2.98116371,114110.0,114100.0,0.172358]
[1754439381607,3.59336371,114110.0,114100.0,0.172358]
[1754439382008,2.91159848,114110.0,114100.0,0.172358]
[1754439382207,3.52379848,114110.0,114100.0,0.172358]
[1754439382406,3.52379848,114110.0,114100.0,0.435258]
[1754439385209,3.52379848,114110.0,114100.0,0.6105498]
[1754439385406,3.52379848,114110.0,114100.0,0.435258]
[1754439385702,2.91159848,114110.0,114100.0,0.436258]
[1754439386007,2.91159848,114110.0,114100.0,0.6115498]
[1754439386308,3.52375848,114110.0,114100.0,1.12527178]
[1754439388711,3.0100365,114110.0,114100.0,0.6115498]
[1754439390113,3.46653896,114110.0,114100.0,0.436258]
[1754439390309,3.0100365,114110.0,114100.0,0.436258]
[1754439391114,3.46653896,114110.0,114100.0,0.436258]
[1754439391415,3.46653896,114110.0,114100.0,0.6115498]
[1754439392210,3.46653896,114110.0,114100.0,0.436258]
[1754439392419,3.46653896,114110.0,114100.0,0.6115498]
[1754439393118,3.46653896,114110.0,114100.0,0.436258]
[1754439394115,3.46653896,114110.0,114100.0,0.6115499]
[1754439394409,3.46653896,114110.0,114100.0,0.436258]
[1754439394617,3.46653896,114110.0,114100.0,0.6115499]
[1754439395415,3.46653896,114110.0,114100.0,0.436258]
[1754439395715,3.46653896,114110.0,114100.0,0.6115498]
[1754439397217,3.0100365,114110.0,114100.0,0.6115498]
[1754439397719,2.3978765,114110.0,114100.0,0.6115498]
[1754439398015,3.0098365,114110.0,114100.0,0.6115498]
[1754439404922,3.46633896,114110.0,114100.0,0.436258]
[1754439405323,3.46633896,114110.0,114100.0,0.6115498]
[1754439405725,3.46633896,114110.0,114100.0,0.436258]
[1754439406024,3.46633896,114110.0,114100.0,0.6115498]
[1754439406624,3.46633896,114110.0,114100.0,0.436258]
[1754439407822,3.46633896,114110.0,114100.0,0.316038]
[1754439409126,3.46633896,114110.0,114100.0,0.339348]
[1754439415626,3.46597896,114110.0,114100.0,0.5146397]
[1754439415928,3.46597896,114110.0,114100.0,0.6100497]
[1754439417128,3.46597896,114110.0,114100.0,0.5634997]
[1754439417827,3.46597896,114110.0,114100.0,0.388208]
[1754439421328,3.0094765,114110.0,114100.0,0.388208]
[1754439421529,3.46597896,114110.0,114100.0,0.388208]
[1754439421726,3.0094765,114110.0,114100.0,0.388208]
[1754439421934,3.0094765,114110.0,114100.0,0.434758]
[1754439422135,3.46597896,114110.0,114100.0,0.434758]
[1754439422823,3.46597896,114110.0,114100.0,0.6100498]
[1754439422824,2.3978765,114110.0,114100.0,0.6100498]
[1754439423019,3.0093165,114110.0,114100.0,0.434758]
[1754439423333,3.0093165,114110.0,114100.0,0.6100498]
[1754439423932,3.0093165,114110.0,114100.0,1.06655226]
[1754439424730,3.52286753,114110.0,114100.0,1.12360083]
[1754439425231,4.03641856,114110.0,114100.0,0.316038]
[1754439425434,3.0093165,114110.0,114100.0,0.316038]